bitfinex/quotes_ETHUSD_20250802
["timestamp","ask_amount","ask_price","bid_price","bid_amount"]
[1754116131349,6.922,3473.5,3472.8,0.002]
[1754116131551,4.872,3473.4,3472.8,0.002]
[1754116131950,6.922,3473.5,3472.8,0.002]
[1754116132152,4.872,3473.4,3472.8,0.002]
[1754116132478,4.868,3473.3,3472.8,0.002]
[1754116133175,6.922,3473.5,3472.8,0.1382]
[1754116133373,4.867,3473.2,3472.8,0.1382]
[1754116134273,4.867,3473.2,3472.8,0.002]
[1754116134474,6.922,3473.5,3472.8,0.002]
[1754116134676,4.86,3473.1,3472.8,0.002]
[1754116135047,4.857,3473.0,3472.8,0.002]
[1754116135248,0.001,3474.2,3472.9,0.1362]
[1754116135580,0.001,3474.2,3473.0,3.1811088]
[1754116135581,1.739,3474.1,3473.0,3.1811088]
[1754116135880,1.739,3474.1,3473.1,3.01541337]
[1754116136061,0.001,3474.2,3473.1,3.01541337]
[1754116136256,4.861,3474.1,3473.1,2.90800609]
[1754116136460,0.001,3474.2,3473.2,0.1362]
[1754116136661,4.861,3474.0,3473.3,3.0]
[1754116136861,4.861,3474.0,3473.4,0.1362]
[1754116137062,0.001,3474.2,3473.4,0.1362]
[1754116137477,0.001,3474.2,3473.4,3.0151465]
[1754116137785,0.001,3474.2,3473.5,2.87890636]
[1754116137945,0.001,3474.2,3473.6,0.58941963]
[1754116138145,0.001,3474.2,3473.6,0.1362]
[1754116138372,0.001,3474.2,3473.7,0.16498774]
[1754116138686,0.001,3474.2,3473.9,3.0]
[1754116138982,0.001,3474.2,3473.7,0.1362]
[1754116139158,0.001,3474.2,3473.9,3.01477777]
[1754116139364,0.001,3474.2,3474.0,3.62101813]
[1754116139656,0.001,3474.2,3474.1,0.144]
[1754116140055,0.001,3474.2,3474.1,0.2802]
[1754116140248,0.001,3474.6,3474.4,2.87816812]
[1754116140477,0.001,3474.6,3474.5,3.71964575]
[1754116140649,0.001,3474.6,3474.5,0.71964575]
[1754116140861,0.001,3474.6,3474.5,0.144]
[1754116141076,5.7671,3474.6,3473.2,0.33173214]
[1754116141381,0.94657072,3474.5,3472.4,6.0238309]
[1754116141585,0.94657072,3474.5,3472.5,3.51859159]
[1754116141774,0.94657072,3474.4,3472.5,0.63884]
[1754116141980,0.9181,3474.4,3472.5,0.63884]
[1754116142184,1.727,3474.5,3472.5,0.63884]
[1754116142185,5.7831,3474.3,3472.5,0.63884]
[1754116142494,6.53421,3474.3,3472.5,0.63884]
[1754116142663,0.9181,3474.2,3472.5,0.63884]
[1754116142972,5.7811,3474.1,3472.7,3.02359804]
[1754116143173,5.7811,3474.1,3472.7,0.144]
[1754116143378,0.4503,3474.0,3472.7,0.144]
[1754116143678,0.4503,3474.0,3472.5,3.77504]
[1754116143897,0.4503,3474.0,3472.5,0.77504]
[1754116144100,0.4503,3474.0,3472.5,0.63884]
[1754116144285,0.4678,3473.9,3472.5,0.63884]
[1754116145106,0.4503,3473.8,3472.5,0.63884]
[1754116145314,5.3093,3473.8,3472.5,0.63884]
[1754116145607,0.4678,3473.7,3472.5,0.63884]
[1754116145812,0.9181,3473.7,3472.5,0.63884]
[1754116146211,0.9181,3473.6,3472.5,0.63884]
[1754116146426,1.727,3473.5,3472.5,0.63884]
[1754116146714,5.7761,3473.5,3472.5,0.63884]
[1754116146910,4.858,3473.5,3472.5,0.63884]
[1754116147109,0.9181,3473.4,3472.5,0.63884]
[1754116147284,4.85,3473.3,3472.5,0.63884]
[1754116147496,4.85,3473.2,3472.5,0.63884]
[1754116147699,4.848,3473.3,3472.5,0.63884]
[1754116148176,0.4678,3473.7,3472.5,0.63884]
[1754116148375,0.4503,3473.2,3472.5,0.02327]
[1754116148707,0.4503,3473.1,3472.5,0.02327]
[1754116149418,0.4503,3473.1,3472.8,0.64084]
[1754116149970,0.4503,3473.5,3472.8,0.002]
[1754116150185,4.847,3473.4,3472.8,0.002]
[1754116150672,0.9181,3473.3,3472.8,0.002]
[1754116151201,5.7651,3473.2,3472.8,0.002]
[1754116151407,0.9181,3473.1,3472.8,0.002]
[1754116151908,4.847,3473.2,3472.8,0.002]
[1754116151909,0.9181,3473.0,3472.8,0.002]
[1754116152267,0.9181,3472.9,3472.8,0.002]
[1754116152472,5.7641,3472.9,3472.8,0.002]
[1754116152668,5.7641,3472.9,3472.8,0.146]
[1754116152669,4.842,3472.9,3472.8,0.146]
[1754116152869,0.5943,3473.4,3472.8,0.146]
[1754116152870,4.841,3473.2,3472.8,0.146]
[1754116153382,4.841,3473.2,3473.1,0.144]
[1754116153580,4.985,3473.2,3472.8,0.002]
[1754116153982,0.9181,3473.1,3472.8,0.002]
[1754116154398,5.7591,3473.0,3472.8,0.002]
[1754116154597,0.9181,3473.0,3472.8,0.002]
[1754116154909,5.7581,3473.0,3472.8,0.002]
[1754116155204,0.9181,3472.9,3472.8,0.002]
[1754116155397,5.7561,3472.9,3472.8,0.146]
[1754116155770,5.7561,3472.9,3472.8,0.002]
[1754116157307,5.7561,3472.9,3472.4,0.002]
[1754116157308,30.0,3472.8,3472.4,0.002]
[1754116157473,30.0,3472.8,3470.9,0.004]
[1754116157474,1.727,3472.5,3470.9,0.004]
[1754116158005,1.727,3472.3,3470.9,0.148]
[1754116158211,4.843,3472.2,3470.9,0.148]
[1754116158382,31.60357072,3472.1,3470.9,0.004]
[1754116158583,30.0,3471.9,3470.9,0.004]
[1754116159095,0.9181,3471.8,3470.9,0.004]
[1754116159271,6.922,3471.7,3470.9,0.004]
[1754116159478,30.0,3471.5,3470.9,0.004]
[1754116159702,5.7561,3471.6,3470.9,0.004]
[1754116159892,0.9181,3471.4,3470.9,0.004]
[1754116160372,0.4678,3471.3,3470.9,0.004]
[1754116160569,0.9181,3471.3,3470.9,0.004]
[1754116160838,0.9181,3471.2,3470.9,0.004]
[1754116161033,4.834,3471.1,3470.9,0.004]
[1754116161230,5.7521,3471.1,3470.9,0.004]
[1754116161434,6.922,3472.0,3470.9,0.004]
[1754116161435,5.7561,3471.0,3470.9,0.004]
[1754116161837,5.7903,3471.0,3470.9,0.004]
[1754116162037,5.7913,3471.0,3470.9,0.004]
[1754116162257,0.9523,3471.0,3470.9,0.004]
[1754116162646,5.7893,3471.0,3470.9,0.004]
[1754116163256,5.7883,3471.0,3470.9,0.004]
[1754116163456,0.9523,3471.0,3470.9,0.004]
[1754116163658,5.7853,3471.0,3470.9,0.004]
[1754116164034,0.4998,3471.0,3470.9,0.004]
[1754116164229,0.4998,3471.4,3470.9,0.004]
[1754116164429,4.83,3471.3,3470.9,0.004]
[1754116164631,5.7823,3471.3,3470.9,0.004]
[1754116164830,4.829,3471.2,3470.9,0.004]
[1754116165070,0.4525,3471.8,3470.9,0.004]
[1754116165269,0.4998,3471.9,3470.9,0.3116]
[1754116165471,6.922,3472.0,3470.9,0.004]
[1754116165668,6.922,3472.0,3470.9,0.03281097]
[1754116165669,5.7963,3471.8,3470.9,0.03281097]
[1754116165880,4.845,3471.7,3470.9,2.91385058]
[1754116166052,4.846,3471.7,3471.0,0.91826941]
[1754116166235,4.846,3471.7,3471.0,0.3076]
[1754116166772,4.844,3471.7,3471.0,0.3076]
[1754116167268,4.842,3471.7,3471.1,2.88086136]
[1754116167470,4.845,3471.9,3471.2,0.3076]
[1754116167628,0.4998,3472.7,3471.4,2.88068214]
[1754116167831,4.843,3472.6,3471.8,2.88033882]
[1754116168044,0.144,3472.3,3471.6,0.144]
[1754116168372,0.6438,3473.0,3472.5,0.144]
[1754116168530,0.6438,3473.0,3471.7,0.1462]
[1754116168531,0.4998,3473.0,3471.7,3.17500433]
[1754116168731,0.144,3473.1,3472.6,0.144]
[1754116168970,4.84,3473.0,3472.7,0.02879603]
[1754116169158,6.924,3473.4,3472.2,0.1614]
[1754116169469,4.839,3473.3,3473.1,0.144]
[1754116169671,0.9523,3473.7,3473.3,0.144]
[1754116169857,4.84,3473.6,3473.4,0.02879023]
[1754116170058,0.4998,3473.7,3473.3,0.144]
[1754116170258,4.837,3473.6,3473.4,0.02879023]
[1754116170451,4.837,3473.6,3473.3,0.144]
[1754116170652,0.9523,3473.5,3473.3,0.144]
[1754116170848,0.9523,3473.5,3473.2,0.144]
[1754116171173,5.7873,3473.4,3473.2,0.144]
[1754116171337,1.0963,3473.3,3471.8,0.31750043]
[1754116171542,4.835,3473.4,3472.7,0.865343]
[1754116171543,0.144,3473.1,3472.7,0.865343]
[1754116171740,0.9523,3473.0,3472.7,0.865343]
[1754116171940,0.9523,3472.9,3472.6,0.144]
[1754116172176,0.4998,3472.9,3472.6,0.144]
[1754116172480,4.831,3473.2,3472.2,1.011543]
[1754116172677,4.831,3473.2,3473.1,0.144]
[1754116173062,5.3318,3473.2,3473.1,0.144]
[1754116173285,4.832,3473.2,3473.1,0.144]
[1754116173478,4.832,3473.3,3473.1,0.144]
[1754116173640,4.829,3473.4,3473.1,0.144]
[1754116173841,0.6438,3473.6,3473.1,0.144]
[1754116174149,4.828,3473.5,3473.1,0.144]
[1754116174561,4.827,3473.6,3472.6,0.1462]
[1754116174759,4.827,3473.6,3473.4,0.144]
[1754116174963,4.827,3473.6,3472.2,0.865343]
[1754116174964,30.0,3473.4,3470.9,0.004]
[1754116175272,0.55,3473.2,3470.9,0.004]
[1754116175449,30.0,3473.0,3470.9,0.004]
[1754116175654,0.144,3471.7,3471.2,0.144]
[1754116175853,0.9523,3471.6,3471.2,0.144]
[1754116176056,5.3185,3472.0,3470.9,0.004]
[1754116176268,4.866,3471.9,3471.6,0.144]
[1754116176463,5.3658,3471.9,3471.6,0.144]
[1754116176671,0.9523,3471.8,3471.6,0.144]
[1754116176842,0.9523,3471.8,3470.9,0.004]
[1754116177046,0.4998,3471.7,3471.3,0.144]
[1754116177245,0.9523,3471.7,3471.3,0.144]
[1754116177445,0.4525,3471.6,3471.3,0.144]
[1754116177671,0.9523,3471.5,3471.3,0.144]
[1754116177888,0.144,3471.8,3471.3,0.144]
[1754116178070,0.9523,3471.7,3471.3,0.144]
[1754116178400,5.8113,3471.6,3471.3,0.144]
[1754116178541,0.4998,3471.5,3471.3,0.144]
[1754116179585,4.859,3471.6,3471.3,0.144]
[1754116180613,0.9523,3471.5,3471.3,0.144]
[1754116180984,0.9523,3471.4,3471.3,0.144]
[1754116181500,0.4998,3471.4,3471.3,0.144]
[1754116181873,0.4998,3471.4,3471.3,0.146]
[1754116182292,1.0963,3471.8,3471.3,0.146]
[1754116182488,4.843,3471.7,3471.3,0.146]
[1754116182720,5.3428,3471.7,3471.6,0.144]
[1754116182874,0.4998,3471.7,3471.5,0.144]
[1754116183074,5.3408,3471.7,3471.5,0.144]
[1754116183388,4.841,3471.7,3471.5,0.144]
[1754116183734,4.841,3471.8,3471.5,0.144]
[1754116184234,0.4998,3471.7,3471.5,0.144]
[1754116185796,4.83,3471.8,3471.5,0.144]
[1754116186427,0.144,3472.1,3471.5,0.144]
[1754116186625,4.83,3471.9,3471.6,0.02880516]
[1754116186827,4.83,3471.9,3471.5,0.144]
[1754116187030,0.4998,3471.9,3471.5,0.144]
[1754116187431,4.825,3472.0,3471.5,0.144]
[1754116187597,0.9523,3471.8,3471.3,0.002]
[1754116187794,0.4998,3472.3,3471.3,0.002]
[1754116188099,4.823,3472.2,3471.7,0.144]
[1754116188325,0.9523,3472.1,3471.9,0.144]
[1754116188626,4.826,3472.0,3471.9,0.144]
[1754116188928,5.7783,3472.0,3471.9,0.144]
[1754116189517,5.7783,3472.0,3471.5,0.144]
[1754116189518,5.9173,3472.0,3471.5,0.144]
[1754116189838,5.3208,3471.9,3471.5,0.144]
[1754116189997,0.4998,3471.9,3471.5,0.144]
[1754116190335,5.3198,3471.9,3471.5,0.144]
[1754116190495,0.4998,3471.8,3471.5,0.144]
[1754116190696,4.818,3472.0,3471.3,0.002]
[1754116190934,4.818,3472.0,3471.8,0.144]
[1754116191133,0.4525,3471.9,3471.8,0.144]
[1754116191617,0.9523,3471.9,3471.8,0.144]
[1754116192128,0.9523,3471.9,3471.6,0.144]
[1754116192320,4.818,3472.0,3471.6,0.144]
[1754116192537,0.8929,3471.8,3471.6,0.144]
[1754116192937,0.4533,3471.7,3471.6,0.144]
[1754116194949,1.46339,3471.7,3471.3,0.002]
[1754116195126,0.144,3471.4,3471.3,0.002]
[1754116195642,1.06537072,3471.4,3471.3,0.002]
[1754116196157,5.8529,3471.4,3471.3,0.002]
[1754116198420,0.4396,3471.7,3471.3,0.002]
[1754116198577,4.812,3471.6,3471.3,0.002]
[1754116198930,4.814,3471.5,3471.3,0.002]
[1754116199443,4.814,3471.7,3471.3,0.002]
[1754116200367,0.4533,3472.3,3471.4,0.4535]
[1754116200573,4.813,3472.2,3471.4,0.5997]
[1754116200928,4.813,3472.1,3471.4,0.5997]
[1754116201329,4.813,3472.0,3471.3,0.002]
[1754116201530,0.001,3472.9,3471.3,0.002]
[1754116201768,0.4533,3472.6,3471.4,0.4535]
[1754116202177,0.46807072,3472.5,3471.3,0.002]
[1754116202380,1.00999,3472.5,3471.3,0.002]
[1754116202582,5.2623,3472.4,3471.3,0.002]
[1754116202744,0.4533,3472.4,3471.3,0.002]
[1754116202946,4.809,3472.3,3471.3,0.002]
[1754116203178,5.2623,3472.3,3471.3,0.002]
[1754116203365,0.4533,3472.2,3471.3,0.002]
[1754116203677,0.02847072,3472.1,3471.3,0.002]
[1754116203847,1.46309,3472.2,3471.3,0.002]
[1754116203848,0.8929,3472.0,3471.3,0.002]
[1754116204256,0.4533,3471.9,3471.3,0.002]
[1754116204457,4.806,3471.8,3471.3,0.002]
[1754116204678,4.806,3471.7,3471.3,0.002]
[1754116205178,4.806,3471.7,3471.3,0.03080765]
[1754116205380,0.4533,3472.2,3471.4,0.02880682]
[1754116205589,4.801,3472.1,3471.4,0.4535]
[1754116206658,0.4533,3472.6,3471.4,0.4535]
[1754116206883,4.797,3472.5,3471.4,0.4535]
[1754116207272,0.4533,3472.4,3471.4,0.4535]
[1754116207579,4.796,3472.3,3471.3,0.4555]
[1754116207782,4.796,3472.3,3471.4,0.33364149]
[1754116208282,5.2473,3472.4,3472.1,0.144]
[1754116208586,4.794,3472.4,3472.1,0.144]
[1754116208969,0.4533,3472.4,3472.1,0.144]
[1754116209345,0.144,3472.7,3472.1,0.144]
[1754116209545,0.001,3472.9,3471.6,0.5997]
[1754116209546,0.4533,3472.6,3472.3,0.144]
[1754116209754,0.5973,3472.5,3472.0,0.144]
[1754116209952,0.4533,3472.4,3472.0,0.144]
[1754116210364,0.4533,3472.3,3472.0,0.144]
[1754116210686,0.8929,3472.3,3472.0,0.144]
[1754116210902,0.4533,3472.2,3472.0,0.144]
[1754116211284,0.8929,3472.1,3471.7,0.144]
[1754116211491,0.4533,3472.0,3471.7,0.144]
[1754116211858,0.4533,3471.9,3471.7,0.144]
[1754116212256,0.4533,3471.8,3471.7,0.144]
[1754116212580,0.8929,3472.1,3471.7,0.144]
[1754116212780,0.4533,3472.0,3471.7,0.144]
[1754116213176,0.144,3472.2,3471.7,0.144]
[1754116213411,0.4533,3472.2,3471.3,0.4555]
[1754116213693,0.4533,3472.2,3471.9,0.144]
[1754116213880,0.4533,3472.1,3471.9,0.144]
[1754116214078,4.924,3472.4,3471.9,0.144]
[1754116214287,0.4533,3472.3,3471.9,0.144]
[1754116214453,0.4533,3472.2,3471.9,0.144]
[1754116214659,5.3636,3472.4,3471.9,0.144]
[1754116214660,0.4533,3472.1,3471.9,0.144]
[1754116214858,0.8929,3472.0,3471.9,0.144]
[1754116215161,0.4533,3472.0,3471.9,0.144]
[1754116215467,0.8929,3472.3,3471.9,0.144]
[1754116215672,0.4533,3472.2,3471.9,0.144]
[1754116216086,0.4533,3472.1,3471.9,0.144]
[1754116216590,0.4533,3472.5,3471.9,0.144]
[1754116216790,0.4533,3472.5,3471.5,0.4535]
[1754116216996,0.4533,3472.5,3472.2,0.144]
[1754116217195,0.144,3472.7,3472.2,0.144]
[1754116217567,0.8929,3472.6,3472.2,0.144]
[1754116217901,0.8929,3472.5,3472.2,0.144]
[1754116218103,0.8929,3472.4,3472.2,0.144]
[1754116218270,0.4533,3472.3,3472.2,0.144]
[1754116218607,0.4533,3472.3,3472.1,0.144]
[1754116218799,0.4396,3472.4,3472.1,0.144]
[1754116218800,0.4533,3472.2,3472.1,0.144]
[1754116219801,0.8929,3472.2,3471.5,0.4533]
[1754116220104,0.8929,3472.1,3471.7,0.144]
[1754116220606,0.8929,3472.0,3471.7,0.144]
[1754116220949,0.8929,3471.9,3471.7,0.144]
[1754116221104,0.144,3472.2,3471.7,0.144]
[1754116221323,0.8929,3471.8,3471.3,0.002]
[1754116221500,0.8929,3471.8,3471.5,0.144]
[1754116221665,0.4825,3471.7,3471.5,0.144]
[1754116222864,0.4825,3472.0,3471.6,0.02880516]
[1754116223082,4.761,3472.3,3471.9,0.144]
[1754116223504,0.144,3472.6,3471.7,0.4457]
[1754116224080,5.2435,3472.7,3471.7,0.4457]
[1754116224081,0.4825,3472.5,3471.7,0.4457]
[1754116224286,0.9568,3472.5,3472.1,0.144]
[1754116224480,0.9568,3472.4,3472.1,0.144]
[1754116224712,0.9568,3472.3,3472.1,0.144]
[1754116224913,0.9568,3472.3,3471.3,0.002]
[1754116225088,0.144,3472.1,3471.3,0.002]
[1754116225294,0.144,3472.1,3471.6,0.144]
[1754116225606,0.4825,3472.0,3471.6,0.144]
[1754116225784,0.6183,3472.1,3471.6,0.144]
[1754116225986,0.4825,3471.9,3471.6,0.144]
[1754116226735,0.4825,3471.8,3471.6,0.144]
[1754116226931,0.4743,3471.9,3471.6,0.144]
[1754116227098,0.144,3472.2,3471.6,0.144]
[1754116227300,0.4825,3471.9,3471.6,0.144]
[1754116227499,0.144,3472.2,3471.6,0.144]
[1754116227701,0.4825,3472.2,3471.8,0.144]
[1754116227904,0.4743,3472.1,3471.8,0.144]
[1754116228294,0.9568,3472.0,3471.3,0.002]
[1754116228543,0.9568,3472.0,3471.7,0.144]
[1754116228709,0.144,3472.3,3471.7,0.144]
[1754116229043,0.9568,3471.9,3471.7,0.144]
[1754116229226,0.4743,3471.9,3471.7,0.144]
[1754116229415,0.4825,3471.8,3471.7,0.144]
[1754116229906,0.4743,3472.2,3471.7,0.144]
[1754116230233,0.9568,3472.5,3471.5,0.4457]
[1754116230437,5.8608,3472.5,3472.0,0.144]
[1754116230645,0.144,3472.5,3472.0,0.144]
[1754116230808,0.4825,3472.5,3472.1,0.144]
[1754116231144,0.4825,3472.4,3472.1,0.144]
[1754116231505,0.4825,3472.3,3471.5,0.4457]
[1754116231903,0.4825,3472.3,3472.2,0.144]
[1754116235008,4.76,3472.7,3472.2,0.144]
[1754116235718,0.4825,3472.6,3472.2,0.144]
[1754116236352,0.144,3472.8,3472.2,0.144]
[1754116236975,0.001,3473.4,3472.2,12.35677993]
[1754116237173,0.001,3473.4,3471.9,8.22059736]
[1754116237174,0.4825,3473.7,3473.1,12.35677993]
[1754116237339,0.4743,3474.0,3473.2,0.02879189]
[1754116237541,0.9568,3474.0,3473.2,0.02879189]
[1754116237739,0.9568,3474.0,3473.2,3.02879189]
[1754116237973,0.4825,3474.0,3473.3,1.66965118]
[1754116238271,0.4825,3474.2,3473.3,1.66965118]
[1754116238593,0.50277072,3474.1,3473.1,0.86524]
[1754116238767,0.4825,3474.0,3472.5,3.4457]
[1754116239085,0.4825,3474.0,3472.3,6.04038195]
[1754116239086,0.50277072,3473.9,3472.9,0.4825]
[1754116239289,5.2415,3473.8,3472.0,3.0]
[1754116239457,0.9568,3473.7,3472.5,0.4825]
[1754116239804,0.9568,3473.6,3472.1,2.15064634]
[1754116239953,0.98527072,3473.5,3472.1,3.01612434]
[1754116240141,6.486,3473.8,3472.1,3.01612434]
[1754116240345,1.63387072,3473.7,3472.2,1.81965415]
[1754116240539,2.6838,3473.6,3471.7,0.86557]
[1754116240877,1.727,3473.4,3471.3,0.002]
[1754116241060,30.0,3473.1,3471.3,0.002]
[1754116241380,2.86824707,3473.0,3471.3,0.002]
[1754116241538,0.9568,3473.3,3471.3,0.002]
[1754116241539,5.74327072,3472.9,3471.3,0.002]
[1754116241742,30.0,3472.7,3471.3,0.002]
[1754116242098,31.727,3472.3,3471.3,0.002]
[1754116242379,6.922,3472.2,3471.3,0.867681]
[1754116242595,0.9568,3472.1,3471.3,0.002]
[1754116242802,0.4825,3472.1,3471.3,0.002]
[1754116243078,0.4743,3472.1,3471.3,0.34965101]
[1754116243279,0.51097072,3472.0,3471.3,0.002]
[1754116243444,0.4825,3472.0,3471.3,0.002]
[1754116244083,0.14685636,3473.8,3471.6,12.46620266]
[1754116244084,4.758,3472.7,3471.6,12.46620266]
[1754116244381,6.923,3473.5,3472.0,2.88010233]
[1754116244382,4.758,3473.3,3472.0,2.88010233]
[1754116244586,4.758,3473.3,3472.3,3.0]
[1754116244886,7.4055,3473.5,3472.4,0.5919]
[1754116245045,0.4825,3473.4,3472.4,3.4457]
[1754116245377,6.923,3473.5,3472.5,0.1462]
[1754116245578,6.923,3473.5,3472.6,3.0]
[1754116245779,0.4825,3473.8,3472.7,0.64716684]
[1754116245949,0.4825,3473.8,3472.8,0.0287952]
[1754116246150,0.4825,3473.8,3472.7,1.51248184]
[1754116246359,5.7148,3473.8,3472.5,0.4457]
[1754116246683,0.98527072,3473.7,3472.7,0.4825]
[1754116246882,0.9568,3473.6,3471.8,3.4457]
[1754116247181,0.144,3473.4,3472.9,0.144]
[1754116247388,0.9568,3473.3,3472.9,0.144]
[1754116247589,0.4743,3473.3,3472.9,0.144]
[1754116247753,0.4825,3473.2,3472.9,0.144]
[1754116248164,0.4743,3473.3,3472.9,0.144]
[1754116248369,0.4825,3473.1,3472.9,0.144]
[1754116248792,0.4825,3473.0,3472.9,0.144]
[1754116249092,0.144,3473.4,3472.9,0.144]
[1754116249386,4.757,3473.7,3473.3,0.144]
[1754116249547,0.4825,3473.4,3473.3,0.144]
[1754116249748,0.4825,3473.4,3472.0,1.31081977]
[1754116249995,0.6183,3473.3,3472.8,0.144]
[1754116250162,0.9568,3473.2,3472.3,0.4457]
[1754116250488,0.98527072,3473.1,3471.7,0.86555]
[1754116250687,0.144,3472.2,3471.7,1.28152116]
[1754116250888,0.144,3472.2,3471.6,0.144]
[1754116251127,0.9568,3472.1,3471.6,0.144]
[1754116251249,0.144,3472.2,3471.6,0.144]
[1754116251250,0.9568,3472.0,3471.6,0.144]
[1754116251450,0.9568,3471.9,3471.6,0.144]
[1754116251691,0.144,3472.2,3471.2,0.002]
[1754116251991,0.4671,3472.3,3471.8,0.144]
[1754116252194,0.9037,3472.2,3471.8,0.144]
[1754116252356,0.9037,3472.1,3471.7,0.144]
[1754116252558,0.9037,3472.1,3471.2,0.002]
[1754116252757,0.144,3471.9,3471.4,0.144]
[1754116252989,0.4671,3471.8,3471.4,0.144]
[1754116253163,0.5806,3471.9,3471.4,0.144]
[1754116253357,0.4671,3471.7,3471.4,0.144]
[1754116253897,0.4671,3471.6,3471.4,0.144]
[1754116254099,0.4671,3471.6,3471.2,0.002]
[1754116254399,0.4671,3471.5,3471.2,0.002]
[1754116255331,0.4671,3471.9,3471.3,0.03080765]
[1754116255510,7.02,3473.2,3471.3,0.002]
[1754116255511,5.1936,3472.4,3471.3,0.002]
[1754116255720,0.4671,3471.9,3471.3,0.002]
[1754116256076,0.4671,3471.9,3471.3,0.03080765]
[1754116256487,0.4671,3471.9,3471.3,0.002]
[1754116256699,4.757,3472.4,3471.3,0.002]
[1754116256700,0.4671,3472.3,3471.3,0.002]
[1754116257115,0.4671,3472.6,3471.5,3.0]
[1754116257314,0.4671,3472.6,3471.6,0.67631062]
[1754116257501,0.4671,3472.6,3471.6,0.02880516]
[1754116257702,0.4671,3472.6,3471.6,2.90926752]
[1754116257914,0.4671,3472.6,3471.6,0.02880516]
[1754116258094,0.4671,3472.6,3471.4,3.4462]
[1754116258416,0.4671,3472.6,3471.5,0.64772311]
[1754116258817,7.021,3474.5,3471.6,3.4462]
[1754116259019,0.4671,3472.9,3471.6,0.4462]
[1754116259219,0.4366,3472.8,3471.5,0.64772311]
[1754116259432,0.4366,3472.8,3471.3,0.002]
[1754116259433,0.49557072,3472.7,3471.3,0.002]
[1754116259602,0.4671,3472.7,3471.3,0.002]
[1754116259913,0.4366,3472.6,3471.3,0.002]
[1754116260280,0.4671,3472.5,3471.3,0.002]
[1754116260487,0.4671,3472.5,3471.4,0.17500682]
[1754116260686,0.4671,3472.5,3471.4,0.89838404]
[1754116260922,0.4671,3472.5,3471.5,3.0]
[1754116261221,7.3891,3473.3,3472.2,2.88000828]
[1754116261420,0.4671,3473.6,3472.4,2.87979476]
[1754116261580,0.4671,3473.6,3472.3,0.5924]
[1754116261787,0.4671,3473.6,3472.4,0.35924]
[1754116261989,0.4671,3473.6,3472.6,3.0]
[1754116262184,0.4366,3473.9,3472.5,0.4462]
[1754116262426,0.4671,3473.8,3472.4,0.35924]
[1754116262629,0.4366,3473.7,3472.4,0.35924]
[1754116262827,0.4366,3473.7,3472.5,6.2482906]
[1754116263033,0.4681,3474.0,3472.7,3.0]
[1754116263197,0.001,3474.0,3473.2,3.0]
[1754116263394,0.001,3474.0,3473.3,0.4462]
[1754116263695,0.001,3474.0,3473.2,0.4462]
[1754116263913,0.001,3474.0,3473.3,0.02879106]
[1754116264119,0.001,3474.0,3473.9,0.144]
[1754116264591,0.001,3474.0,3473.9,1.19247484]
[1754116265128,0.001,3474.0,3473.9,0.74627484]
[1754116265329,0.001,3474.0,3473.9,0.144]
[1754116266233,0.9047,3474.0,3473.9,0.144]
[1754116266432,0.9047,3474.0,3472.5,0.83563649]
[1754116266630,0.93217072,3473.9,3472.5,0.4671]
[1754116266847,0.9037,3473.8,3472.3,2.87985975]
[1754116267026,0.93217072,3473.7,3472.3,0.835636]
[1754116267338,0.001,3474.0,3472.3,3.835636]
[1754116267339,0.9037,3473.6,3472.3,3.835636]
[1754116267637,0.4671,3473.5,3472.2,3.32614335]
[1754116267842,0.4671,3473.7,3472.3,1.24203138]
[1754116267994,0.4671,3473.7,3472.5,3.0]
[1754116268202,0.4671,3473.7,3472.6,0.02879686]
[1754116268400,0.4671,3473.7,3472.6,0.47499686]
[1754116269033,0.4681,3474.0,3472.6,0.47499686]
[1754116269195,0.001,3474.0,3472.7,0.6962]
[1754116269397,0.001,3474.0,3472.9,0.55]
[1754116269794,0.001,3474.0,3472.8,3.4462]
[1754116269998,0.001,3474.0,3472.9,0.5924]
[1754116270200,0.001,3474.0,3473.2,2.87916836]
[1754116270401,0.001,3474.0,3472.7,3.865061]
[1754116270402,0.4376,3474.0,3473.3,0.28791684]
[1754116270631,0.4671,3473.9,3472.7,3.865061]
[1754116271038,0.4671,3473.9,3472.7,0.865061]
[1754116271242,0.4671,3473.9,3472.8,0.6211952]
[1754116271409,0.001,3474.0,3473.0,2.87935502]
[1754116271614,0.001,3474.0,3472.9,7.94586185]
[1754116271797,0.4681,3474.0,3472.9,1.07022562]
[1754116272000,0.4681,3474.0,3472.9,4.07022562]
[1754116272219,0.4681,3474.0,3472.9,1.07022562]
[1754116272436,0.001,3474.0,3473.0,0.96852221]